[Event "*** SCC Grand Prix: Titled Tuesday Blitz"]
[Site "Chess.com"]
[Date "2020.07.14"]
[Round "8"]
[White "RoelandPruijssers"]
[Black "amatatanav"]
[Result "0-1"]
[WhiteElo "2588"]
[BlackElo "2479"]
[TimeControl "180+1"]
[EndTime "11:35:44 PDT"]
[Termination "amatatanav won by resignation"]

1. e4 {[%clk 0:02:55.2]} 1... c5 {[%clk 0:02:59.5]} 2. Nf3 {[%clk 0:02:53.3]}
2... Nc6 {[%clk 0:02:59.5]} 3. d4 {[%clk 0:02:50.3]} 3... cxd4 {[%clk
0:03:00.4]} 4. Nxd4 {[%clk 0:02:50.9]} 4... g6 {[%clk 0:02:58.9]} 5. c4 {[%clk
0:02:30.2]} 5... Nf6 {[%clk 0:02:56.5]} 6. Nc3 {[%clk 0:02:29.6]} 6... d6 {[%clk
0:02:56.8]} 7. Be2 {[%clk 0:02:26.8]} 7... Nxd4 {[%clk 0:02:57.2]} 8. Qxd4
{[%clk 0:02:26.5]} 8... Bg7 {[%clk 0:02:58.1]} 9. Bg5 {[%clk 0:02:26.5]} 9...
O-O {[%clk 0:02:57.8]} 10. Qd2 {[%clk 0:02:27.1]} 10... Be6 {[%clk 0:02:54.4]}
11. Rc1 {[%clk 0:02:21.2]} 11... Qa5 {[%clk 0:02:28.1]} 12. b3 {[%clk
0:01:59.9]} 12... Rfc8 {[%clk 0:02:14.4]} 13. f3 {[%clk 0:01:56.8]} 13... a6
{[%clk 0:02:08.3]} 14. Na4 {[%clk 0:01:55.7]} 14... Qxd2+ {[%clk 0:01:47.1]} 15.
Kxd2 {[%clk 0:01:53.9]} 15... Nd7 {[%clk 0:01:47.4]} 16. g4 {[%clk 0:01:42.2]}
16... Kf8 {[%clk 0:01:35.3]} 17. Be3 {[%clk 0:01:40.7]} 17... Rc6 {[%clk
0:01:23.1]} 18. h4 {[%clk 0:01:27.8]} 18... Nc5 {[%clk 0:00:59.2]} 19. Nc3
{[%clk 0:01:23.6]} 19... a5 {[%clk 0:00:57.7]} 20. Nb5 {[%clk 0:01:11.7]} 20...
a4 {[%clk 0:00:48]} 21. b4 {[%clk 0:01:08.8]} 21... Na6 {[%clk 0:00:47.8]} 22.
a3 {[%clk 0:01:08.2]} 22... Bb2 {[%clk 0:00:40.9]} 23. Rc2 {[%clk 0:01:04.6]}
23... Bg7 {[%clk 0:00:32.9]} 24. h5 {[%clk 0:00:59.7]} 24... Nc7 {[%clk
0:00:21.9]} 25. Nd4 {[%clk 0:00:59.2]} 25... Bxd4 {[%clk 0:00:20.4]} 26. Bxd4
{[%clk 0:01:00.1]} 26... g5 {[%clk 0:00:16.7]} 27. b5 {[%clk 0:00:57.9]} 27...
Rc5 {[%clk 0:00:11.5]} 28. Be5 {[%clk 0:00:51.4]} 28... Rxe5 {[%clk 0:00:10.2]}
0-1

[Event "*** SCC Grand Prix: Titled Tuesday Blitz"]
[Site "Chess.com"]
[Date "2020.07.14"]
[Round "8"]
[White "ellatambien"]
[Black "mamey78"]
[Result "0-1"]
[WhiteElo "2497"]
[BlackElo "2444"]
[TimeControl "180+1"]
[EndTime "11:35:49 PDT"]
[Termination "mamey78 won on time"]

1. e4 {[%clk 0:01:11.3]} 1... e5 {[%clk 0:02:57]} 2. Nf3 {[%clk 0:01:04.6]} 2...
Nc6 {[%clk 0:02:57]} 3. d4 {[%clk 0:01:04.2]} 3... exd4 {[%clk 0:02:56.4]} 4.
Nxd4 {[%clk 0:01:04.2]} 4... Nf6 {[%clk 0:02:56.3]} 5. Nxc6 {[%clk 0:01:03.8]}
5... bxc6 {[%clk 0:02:55.5]} 6. Bd3 {[%clk 0:01:03.6]} 6... d5 {[%clk
0:02:54.5]} 7. exd5 {[%clk 0:01:03.5]} 7... cxd5 {[%clk 0:02:55.4]} 8. O-O
{[%clk 0:01:03.3]} 8... Bd6 {[%clk 0:02:52.7]} 9. Re1+ {[%clk 0:01:01.2]} 9...
Be6 {[%clk 0:02:51.6]} 10. Bb5+ {[%clk 0:01:00.8]} 10... Kf8 {[%clk 0:02:42.4]}
11. Nc3 {[%clk 0:01:00.1]} 11... Rb8 {[%clk 0:02:31.9]} 12. Qd3 {[%clk
0:00:52.2]} 12... c5 {[%clk 0:02:02.2]} 13. Bg5 {[%clk 0:00:46.6]} 13... Bxh2+
{[%clk 0:02:01.3]} 14. Kh1 {[%clk 0:00:44.5]} 14... Bd6 {[%clk 0:01:56.4]} 15.
Rad1 {[%clk 0:00:43.5]} 15... Ng4 {[%clk 0:01:32.3]} 16. Qd2 {[%clk 0:00:16]}
16... Be7 {[%clk 0:00:54.5]} 17. Bf4 {[%clk 0:00:13.3]} 17... Rb6 {[%clk
0:00:51]} 18. f3 {[%clk 0:00:12.5]} 18... Nf6 {[%clk 0:00:48]} 19. Be5 {[%clk
0:00:10.3]} 19... h6 {[%clk 0:00:46.2]} 20. Ba4 {[%clk 0:00:06.9]} 20... d4
{[%clk 0:00:44.9]} 21. Ne4 {[%clk 0:00:05]} 21... Kg8 {[%clk 0:00:37.8]} 22. Bb3
{[%clk 0:00:04.1]} 22... c4 {[%clk 0:00:36.8]} 23. Ba4 {[%clk 0:00:03.7]} 23...
Nxe4 {[%clk 0:00:36.4]} 24. Rxe4 {[%clk 0:00:02.8]} 24... c3 {[%clk 0:00:34.7]}
25. bxc3 {[%clk 0:00:02.1]} 25... Bc5 {[%clk 0:00:29]} 26. c4 {[%clk 0:00:01.2]}
26... Qg5 {[%clk 0:00:26.8]} 0-1

[Event "*** SCC Grand Prix: Titled Tuesday Blitz"]
[Site "Chess.com"]
[Date "2020.07.14"]
[Round "8"]
[White "Mr_Sinigami"]
[Black "ARMQUEEN"]
[Result "1-0"]
[WhiteElo "2575"]
[BlackElo "2444"]
[TimeControl "180+1"]
[EndTime "11:35:52 PDT"]
[Termination "Mr_Sinigami won by resignation"]

1. d4 {[%clk 0:02:59.3]} 1... Nf6 {[%clk 0:02:58.9]} 2. Nf3 {[%clk 0:02:59.7]}
2... g6 {[%clk 0:02:56.8]} 3. Bf4 {[%clk 0:02:59.8]} 3... Bg7 {[%clk 0:02:49.6]}
4. h3 {[%clk 0:02:59.5]} 4... d6 {[%clk 0:02:49.1]} 5. e3 {[%clk 0:02:59.1]}
5... O-O {[%clk 0:02:48.1]} 6. Be2 {[%clk 0:02:58.8]} 6... Nbd7 {[%clk
0:02:48.2]} 7. O-O {[%clk 0:02:58]} 7... e5 {[%clk 0:02:48.4]} 8. Bh2 {[%clk
0:02:48.4]} 8... Qe7 {[%clk 0:02:44.8]} 9. c4 {[%clk 0:02:47.5]} 9... c6 {[%clk
0:02:41.3]} 10. Nc3 {[%clk 0:02:45.7]} 10... Rd8 {[%clk 0:02:18.7]} 11. Re1
{[%clk 0:02:41]} 11... b6 {[%clk 0:02:08.3]} 12. a4 {[%clk 0:02:30.3]} 12... Ba6
{[%clk 0:02:03.8]} 13. a5 {[%clk 0:02:25.5]} 13... e4 {[%clk 0:01:54]} 14. Nd2
{[%clk 0:02:24.5]} 14... d5 {[%clk 0:01:54.1]} 15. cxd5 {[%clk 0:02:17.3]} 15...
Bxe2 {[%clk 0:01:52.4]} 16. Qxe2 {[%clk 0:02:16.4]} 16... cxd5 {[%clk
0:01:52.3]} 17. Qb5 {[%clk 0:01:53]} 17... bxa5 {[%clk 0:01:44.7]} 18. Nxd5
{[%clk 0:01:46.9]} 18... Nxd5 {[%clk 0:01:39.6]} 19. Qxd5 {[%clk 0:01:46.4]}
19... Qb4 {[%clk 0:01:37.5]} 20. Qxa5 {[%clk 0:01:38.6]} 20... Qxb2 {[%clk
0:01:35.7]} 21. Nxe4 {[%clk 0:01:37.2]} 21... Rdc8 {[%clk 0:01:27.6]} 22. Nd6
{[%clk 0:01:18.1]} 22... Rc6 {[%clk 0:01:20.5]} 23. Qd5 {[%clk 0:01:13.7]} 23...
Qc2 {[%clk 0:01:12.7]} 24. Qxf7+ {[%clk 0:01:11.3]} 24... Kh8 {[%clk 0:01:12.5]}
25. Qxd7 {[%clk 0:01:10.8]} 25... Rf8 {[%clk 0:01:09.9]} 26. Bg3 {[%clk
0:01:07.3]} 26... Rc7 {[%clk 0:00:58.2]} 27. Qe6 {[%clk 0:00:54.2]} 27... Qd2
{[%clk 0:00:46.6]} 28. Ne4 {[%clk 0:00:49.7]} 28... Qc2 {[%clk 0:00:40.6]} 29.
Bxc7 {[%clk 0:00:45.7]} 29... Qxc7 {[%clk 0:00:41.5]} 30. Rec1 {[%clk
0:00:44.4]} 30... Qb7 {[%clk 0:00:36]} 31. Rab1 {[%clk 0:00:43.5]} 31... Qa8
{[%clk 0:00:33.6]} 32. Rc7 {[%clk 0:00:38.2]} 32... a5 {[%clk 0:00:23.2]} 33.
Rbb7 {[%clk 0:00:36.4]} 33... Rg8 {[%clk 0:00:18.5]} 34. Nf6 {[%clk 0:00:29.7]}
1-0

[Event "*** SCC Grand Prix: Titled Tuesday Blitz"]
[Site "Chess.com"]
[Date "2020.07.14"]
[Round "8"]
[White "Jabberwockiez"]
[Black "verdest"]
[Result "0-1"]
[WhiteElo "2288"]
[BlackElo "2489"]
[TimeControl "180+1"]
[EndTime "11:35:52 PDT"]
[Termination "verdest won by checkmate"]

1. e4 {[%clk 0:03:00.9]} 1... c5 {[%clk 0:02:57.5]} 2. Nc3 {[%clk 0:03:00.6]}
2... a6 {[%clk 0:02:57.4]} 3. Nf3 {[%clk 0:03:00]} 3... b5 {[%clk 0:02:55.4]} 4.
d4 {[%clk 0:02:59.8]} 4... cxd4 {[%clk 0:02:56.3]} 5. Nxd4 {[%clk 0:03:00.7]}
5... Bb7 {[%clk 0:02:56.8]} 6. Bd3 {[%clk 0:03:01.1]} 6... e6 {[%clk 0:02:56.8]}
7. O-O {[%clk 0:02:56.6]} 7... Qc7 {[%clk 0:02:54.2]} 8. a4 {[%clk 0:02:54.4]}
8... b4 {[%clk 0:02:51.6]} 9. Na2 {[%clk 0:02:54.3]} 9... Bc5 {[%clk 0:02:42.7]}
10. Nb3 {[%clk 0:02:51.9]} 10... Be7 {[%clk 0:02:38.5]} 11. Qg4 {[%clk
0:02:37.5]} 11... Nf6 {[%clk 0:02:29.8]} 12. Qxg7 {[%clk 0:02:37]} 12... Rg8
{[%clk 0:02:29.8]} 13. Qh6 {[%clk 0:02:37.5]} 13... Nxe4 {[%clk 0:02:25.5]} 14.
f3 {[%clk 0:02:15.5]} 14... Nf6 {[%clk 0:02:02.8]} 15. Bg5 {[%clk 0:01:52]}
15... Qe5 {[%clk 0:01:30.5]} 16. Bxf6 {[%clk 0:01:18.5]} 16... Bxf6 {[%clk
0:01:12.9]} 17. Bxh7 {[%clk 0:01:14.2]} 17... Rh8 {[%clk 0:01:06.8]} 18. Rae1
{[%clk 0:00:58.4]} 18... Qxb2 {[%clk 0:00:47.3]} 19. Nxb4 {[%clk 0:00:57.9]}
19... Bg7 {[%clk 0:00:39.1]} 20. Qh5 {[%clk 0:00:52.5]} 20... Qf6 {[%clk
0:00:29]} 21. Nc5 {[%clk 0:00:48.5]} 21... Qd4+ {[%clk 0:00:20.4]} 22. Kh1
{[%clk 0:00:41.7]} 22... Qxb4 {[%clk 0:00:20.3]} 23. Nxe6 {[%clk 0:00:41.6]}
23... dxe6 {[%clk 0:00:18.6]} 24. Rxe6+ {[%clk 0:00:42.5]} 24... Kf8 {[%clk
0:00:17.9]} 25. Rd1 {[%clk 0:00:35.7]} 25... Nc6 {[%clk 0:00:17.2]} 26. c3
{[%clk 0:00:30.8]} 26... Qa5 {[%clk 0:00:10]} 27. Rd7 {[%clk 0:00:29.6]} 27...
Qxh5 {[%clk 0:00:08.5]} 28. Bg6 {[%clk 0:00:21.3]} 28... Qxh2# {[%clk
0:00:08.2]} 0-1

[Event "*** SCC Grand Prix: Titled Tuesday Blitz"]
[Site "Chess.com"]
[Date "2020.07.14"]
[Round "8"]
[White "albano87"]
[Black "topotun"]
[Result "1/2-1/2"]
[WhiteElo "2495"]
[BlackElo "2706"]
[TimeControl "180+1"]
[EndTime "11:35:58 PDT"]
[Termination "Game drawn by agreement"]

1. d4 {[%clk 0:03:00.9]} 1... Nf6 {[%clk 0:02:59.7]} 2. Nf3 {[%clk 0:03:00.4]}
2... c5 {[%clk 0:02:59.7]} 3. c4 {[%clk 0:02:57.5]} 3... e6 {[%clk 0:02:52.2]}
4. Nc3 {[%clk 0:02:50.6]} 4... cxd4 {[%clk 0:02:52.3]} 5. Nxd4 {[%clk
0:02:50.2]} 5... Nc6 {[%clk 0:02:52.8]} 6. e4 {[%clk 0:02:35.6]} 6... Bb4 {[%clk
0:02:51.7]} 7. Qd3 {[%clk 0:02:27.4]} 7... d5 {[%clk 0:02:34.1]} 8. exd5 {[%clk
0:02:14.5]} 8... exd5 {[%clk 0:02:33.2]} 9. Nxc6 {[%clk 0:02:10.7]} 9... bxc6
{[%clk 0:02:31.4]} 10. Be2 {[%clk 0:02:10.3]} 10... O-O {[%clk 0:01:35.3]} 11.
cxd5 {[%clk 0:02:00.4]} 11... Nxd5 {[%clk 0:01:34.5]} 12. O-O {[%clk 0:01:52.6]}
12... Nxc3 {[%clk 0:01:32.2]} 13. bxc3 {[%clk 0:01:49.6]} 13... Qxd3 {[%clk
0:01:32.2]} 14. Bxd3 {[%clk 0:01:50.1]} 14... Bxc3 {[%clk 0:01:32.8]} 15. Rb1
{[%clk 0:01:31.9]} 15... Be6 {[%clk 0:01:32]} 16. Ba3 {[%clk 0:01:30.5]} 16...
Rfd8 {[%clk 0:01:20.4]} 17. Be4 {[%clk 0:01:28.2]} 17... Bxa2 {[%clk 0:00:57.3]}
18. Rbc1 {[%clk 0:01:24.8]} 18... Bd2 {[%clk 0:00:52.6]} 19. Rxc6 {[%clk
0:01:17]} 19... Bd5 {[%clk 0:00:52]} 20. Bxd5 {[%clk 0:01:11.6]} 20... Rxd5
{[%clk 0:00:52.9]} 21. Rd1 {[%clk 0:01:09.4]} 21... f6 {[%clk 0:00:43.6]} 22. g3
{[%clk 0:01:04.3]} 22... Rad8 {[%clk 0:00:36.3]} 23. Kf1 {[%clk 0:00:49.1]}
23... Ba5 {[%clk 0:00:28.8]} 24. Rxd5 {[%clk 0:00:45]} 24... Rxd5 {[%clk
0:00:29.7]} 25. Bc5 {[%clk 0:00:26.2]} 25... Rd1+ {[%clk 0:00:29.4]} 26. Ke2
{[%clk 0:00:25.1]} 26... Rc1 {[%clk 0:00:29.8]} 27. Rc8+ {[%clk 0:00:23]} 27...
Kf7 {[%clk 0:00:28.4]} 28. Rf8+ {[%clk 0:00:23.6]} 28... Kg6 {[%clk 0:00:28]}
29. Bxa7 {[%clk 0:00:24.2]} 29... Rc2+ {[%clk 0:00:23.2]} 30. Kf3 {[%clk
0:00:23.9]} 30... Rc7 {[%clk 0:00:20.7]} 31. Be3 {[%clk 0:00:23.4]} 31... Rb7
{[%clk 0:00:19.9]} 32. Re8 {[%clk 0:00:21.1]} 32... h5 {[%clk 0:00:19.4]} 33. h4
{[%clk 0:00:20]} 33... Bb6 {[%clk 0:00:18.9]} 1/2-1/2

[Event "*** SCC Grand Prix: Titled Tuesday Blitz"]
[Site "Chess.com"]
[Date "2020.07.14"]
[Round "8"]
[White "grunbergmihai"]
[Black "mortngabriel"]
[Result "0-1"]
[WhiteElo "2499"]
[BlackElo "2385"]
[TimeControl "180+1"]
[EndTime "11:35:59 PDT"]
[Termination "mortngabriel won by checkmate"]

1. Nf3 {[%clk 0:03:00.9]} 1... Nf6 {[%clk 0:02:59.4]} 2. c4 {[%clk 0:03:00.8]}
2... e6 {[%clk 0:02:57.2]} 3. g3 {[%clk 0:03:01.7]} 3... d5 {[%clk 0:02:58.1]}
4. Bg2 {[%clk 0:03:02.6]} 4... dxc4 {[%clk 0:02:58.2]} 5. O-O {[%clk 0:03:03]}
5... a5 {[%clk 0:02:55.9]} 6. a4 {[%clk 0:03:02.3]} 6... c6 {[%clk 0:02:51.1]}
7. Ne5 {[%clk 0:02:47.7]} 7... Nbd7 {[%clk 0:02:47.9]} 8. Nxc4 {[%clk
0:02:45.9]} 8... Be7 {[%clk 0:02:45.3]} 9. d4 {[%clk 0:02:45.3]} 9... O-O {[%clk
0:02:43.4]} 10. Nc3 {[%clk 0:02:45.2]} 10... Nb6 {[%clk 0:02:43.1]} 11. Ne5
{[%clk 0:02:43.9]} 11... Nbd5 {[%clk 0:02:42]} 12. e4 {[%clk 0:02:42.2]} 12...
Nb4 {[%clk 0:02:39.9]} 13. Be3 {[%clk 0:02:39.5]} 13... b6 {[%clk 0:02:35.7]}
14. Rc1 {[%clk 0:02:32.9]} 14... Ba6 {[%clk 0:02:35.3]} 15. Re1 {[%clk
0:02:31.4]} 15... Rc8 {[%clk 0:02:35.8]} 16. Qb3 {[%clk 0:02:10.6]} 16... Nd7
{[%clk 0:02:32.9]} 17. Nxd7 {[%clk 0:02:04.3]} 17... Qxd7 {[%clk 0:02:33.8]} 18.
Red1 {[%clk 0:02:04]} 18... Rfd8 {[%clk 0:02:27.2]} 19. h4 {[%clk 0:02:00.7]}
19... h6 {[%clk 0:02:17.4]} 20. Rd2 {[%clk 0:01:57.1]} 20... Bf6 {[%clk
0:01:46.2]} 21. d5 {[%clk 0:01:53]} 21... exd5 {[%clk 0:01:23.6]} 22. Bxb6
{[%clk 0:01:48.3]} 22... Re8 {[%clk 0:01:15.9]} 23. exd5 {[%clk 0:01:34.8]}
23... Bxc3 {[%clk 0:01:14]} 24. Rxc3 {[%clk 0:01:15.3]} 24... Nxd5 {[%clk
0:01:13.8]} 25. Bxa5 {[%clk 0:01:06.8]} 25... Re1+ {[%clk 0:00:54.1]} 26. Kh2
{[%clk 0:01:06.4]} 26... Qg4 {[%clk 0:00:44.9]} 27. Bf3 {[%clk 0:00:47]} 27...
Qf5 {[%clk 0:00:26.3]} 28. Rc5 {[%clk 0:00:42.6]} 28... Bf1 {[%clk 0:00:20.5]}
29. Bg2 {[%clk 0:00:38.7]} 29... Bxg2 {[%clk 0:00:20.4]} 30. Kxg2 {[%clk
0:00:38.6]} 30... Qe4+ {[%clk 0:00:21]} 31. f3 {[%clk 0:00:35.4]} 31... Qb1
{[%clk 0:00:20.9]} 32. Rdxd5 {[%clk 0:00:31.3]} 32... Rg1+ {[%clk 0:00:16.6]}
33. Kh3 {[%clk 0:00:30.8]} 33... Rh1+ {[%clk 0:00:15.1]} 34. Kg4 {[%clk
0:00:30.4]} 34... Qg6+ {[%clk 0:00:14.7]} 35. Kf4 {[%clk 0:00:29.8]} 35... Qf6+
{[%clk 0:00:13]} 36. Rf5 {[%clk 0:00:29.6]} 36... Qd4# {[%clk 0:00:12.7]} 0-1

[Event "*** SCC Grand Prix: Titled Tuesday Blitz"]
[Site "Chess.com"]
[Date "2020.07.14"]
[Round "8"]
[White "tsvet2005"]
[Black "Djager97"]
[Result "1-0"]
[WhiteElo "2594"]
[BlackElo "2451"]
[TimeControl "180+1"]
[EndTime "11:36:00 PDT"]
[Termination "tsvet2005 won by resignation"]

1. d4 {[%clk 0:02:52.7]} 1... Nf6 {[%clk 0:02:58.8]} 2. c4 {[%clk 0:02:51.7]}
2... c5 {[%clk 0:02:58.9]} 3. dxc5 {[%clk 0:02:50.6]} 3... e6 {[%clk 0:02:56.6]}
4. g3 {[%clk 0:02:37.9]} 4... Bxc5 {[%clk 0:02:53.9]} 5. Bg2 {[%clk 0:02:38.3]}
5... O-O {[%clk 0:02:48.6]} 6. Nf3 {[%clk 0:02:37.4]} 6... Nc6 {[%clk
0:02:24.1]} 7. O-O {[%clk 0:02:34.3]} 7... b6 {[%clk 0:02:12.8]} 8. a3 {[%clk
0:02:30.8]} 8... Bb7 {[%clk 0:02:12.3]} 9. b4 {[%clk 0:02:24.2]} 9... Be7 {[%clk
0:02:12.6]} 10. Bb2 {[%clk 0:02:23.4]} 10... d5 {[%clk 0:02:03.5]} 11. cxd5
{[%clk 0:02:21.5]} 11... Nxd5 {[%clk 0:02:04.4]} 12. Nbd2 {[%clk 0:02:18.1]}
12... Rc8 {[%clk 0:01:55.4]} 13. e4 {[%clk 0:02:16.2]} 13... Nf6 {[%clk
0:01:52.8]} 14. Qe2 {[%clk 0:02:14.4]} 14... Qc7 {[%clk 0:01:44.9]} 15. Rac1
{[%clk 0:02:12.6]} 15... Qb8 {[%clk 0:01:45.2]} 16. Rfd1 {[%clk 0:02:09.5]}
16... Rfd8 {[%clk 0:01:43.7]} 17. Nc4 {[%clk 0:02:03.8]} 17... Rxd1+ {[%clk
0:01:30.7]} 18. Rxd1 {[%clk 0:02:04.7]} 18... Rd8 {[%clk 0:01:31.4]} 19. b5
{[%clk 0:01:53.1]} 19... Rxd1+ {[%clk 0:01:30.8]} 20. Qxd1 {[%clk 0:01:54]}
20... Qd8 {[%clk 0:01:31.1]} 21. Qe2 {[%clk 0:01:39.7]} 21... Na5 {[%clk
0:01:25.8]} 22. Nxa5 {[%clk 0:01:25.9]} 22... bxa5 {[%clk 0:01:26.7]} 23. Nd4
{[%clk 0:01:25.1]} 23... Qd7 {[%clk 0:01:17.1]} 24. e5 {[%clk 0:01:14.2]} 24...
Nd5 {[%clk 0:01:15]} 25. Qc4 {[%clk 0:01:10.6]} 25... Nb6 {[%clk 0:00:45.9]} 26.
Qc2 {[%clk 0:00:57.7]} 26... Bxg2 {[%clk 0:00:45.3]} 27. Kxg2 {[%clk 0:00:58.6]}
27... Qd5+ {[%clk 0:00:40]} 28. Kg1 {[%clk 0:00:58.1]} 28... Nc4 {[%clk
0:00:40.5]} 29. Nc6 {[%clk 0:00:50]} 29... Bc5 {[%clk 0:00:36.5]} 30. a4 {[%clk
0:00:42]} 30... h6 {[%clk 0:00:33]} 31. Bd4 {[%clk 0:00:32.5]} 31... Kf8 {[%clk
0:00:17.5]} 32. Bxc5+ {[%clk 0:00:29.7]} 32... Qxc5 {[%clk 0:00:18.4]} 33. Nxa5
{[%clk 0:00:27.9]} 1-0

[Event "*** SCC Grand Prix: Titled Tuesday Blitz"]
[Site "Chess.com"]
[Date "2020.07.14"]
[Round "8"]
[White "BikingBrian"]
[Black "maximnovik"]
[Result "0-1"]
[WhiteElo "2201"]
[BlackElo "2471"]
[TimeControl "180+1"]
[EndTime "11:36:00 PDT"]
[Termination "maximnovik won by checkmate"]

1. d4 {[%clk 0:03:00.9]} 1... Nf6 {[%clk 0:01:30.1]} 2. Bg5 {[%clk 0:02:58.8]}
2... g6 {[%clk 0:01:30.5]} 3. Bxf6 {[%clk 0:02:58.3]} 3... exf6 {[%clk 0:01:31]}
4. e3 {[%clk 0:02:58.7]} 4... f5 {[%clk 0:01:30.9]} 5. g3 {[%clk 0:02:58.7]}
5... Bg7 {[%clk 0:01:30]} 6. Bg2 {[%clk 0:02:59]} 6... c5 {[%clk 0:01:30.2]} 7.
Ne2 {[%clk 0:02:54.3]} 7... Qb6 {[%clk 0:01:29.7]} 8. Nbc3 {[%clk 0:02:42.9]}
8... cxd4 {[%clk 0:01:13.6]} 9. Nxd4 {[%clk 0:02:24.9]} 9... Qxb2 {[%clk
0:01:08.3]} 10. Nd5 {[%clk 0:02:14.9]} 10... O-O {[%clk 0:01:04.6]} 11. O-O
{[%clk 0:01:49]} 11... Nc6 {[%clk 0:01:04.6]} 12. Rb1 {[%clk 0:01:38.6]} 12...
Qa3 {[%clk 0:01:02.5]} 13. Nxc6 {[%clk 0:01:18.6]} 13... dxc6 {[%clk 0:01:00.7]}
14. Nb4 {[%clk 0:01:09.2]} 14... Be6 {[%clk 0:00:58.4]} 15. Qe2 {[%clk 0:01:06]}
15... a5 {[%clk 0:00:55.1]} 16. Nd3 {[%clk 0:01:03.6]} 16... Qxa2 {[%clk
0:00:54.9]} 17. Rxb7 {[%clk 0:01:00.2]} 17... Qc4 {[%clk 0:00:49.3]} 18. Rb6
{[%clk 0:00:49.2]} 18... a4 {[%clk 0:00:48.6]} 19. Rxc6 {[%clk 0:00:47.6]} 19...
Qb5 {[%clk 0:00:45]} 20. Rc5 {[%clk 0:00:44.7]} 20... Qb6 {[%clk 0:00:40]} 21.
Bxa8 {[%clk 0:00:44.5]} 21... Rxa8 {[%clk 0:00:39.2]} 22. Qf3 {[%clk 0:00:24.7]}
22... Ra7 {[%clk 0:00:33.6]} 23. Qc6 {[%clk 0:00:20.1]} 23... Qxc6 {[%clk
0:00:31.1]} 24. Rxc6 {[%clk 0:00:21]} 24... a3 {[%clk 0:00:31.1]} 25. Nb4 {[%clk
0:00:21.4]} 25... a2 {[%clk 0:00:27.9]} 26. Nxa2 {[%clk 0:00:21.1]} 26... Rxa2
{[%clk 0:00:27.2]} 27. Rd1 {[%clk 0:00:20.8]} 27... Bf6 {[%clk 0:00:26.3]} 28.
c4 {[%clk 0:00:19.9]} 28... Rc2 {[%clk 0:00:24]} 29. c5 {[%clk 0:00:18.9]} 29...
Kg7 {[%clk 0:00:23.4]} 30. Rc7 {[%clk 0:00:19.1]} 30... Be5 {[%clk 0:00:22.7]}
31. Ra7 {[%clk 0:00:17.6]} 31... Rxc5 {[%clk 0:00:21.2]} 32. Kg2 {[%clk
0:00:17.6]} 32... Bd5+ {[%clk 0:00:18.3]} 33. f3 {[%clk 0:00:17.7]} 33... Rc2+
{[%clk 0:00:17.2]} 34. Kh3 {[%clk 0:00:18]} 34... Bxf3 {[%clk 0:00:17.5]} 35.
Rdd7 {[%clk 0:00:17.5]} 35... Bg2+ {[%clk 0:00:17.6]} 36. Kh4 {[%clk 0:00:17.8]}
36... Bf6# {[%clk 0:00:18]} 0-1

[Event "*** SCC Grand Prix: Titled Tuesday Blitz"]
[Site "Chess.com"]
[Date "2020.07.14"]
[Round "8"]
[White "Sam_ChessMood"]
[Black "Tonychess32"]
[Result "1-0"]
[WhiteElo "2812"]
[BlackElo "2643"]
[TimeControl "180+1"]
[EndTime "11:36:01 PDT"]
[Termination "Sam_ChessMood won on time"]

1. e4 {[%clk 0:03:00.6]} 1... c5 {[%clk 0:02:57.1]} 2. Nc3 {[%clk 0:02:56.5]}
2... e6 {[%clk 0:02:56.1]} 3. Nf3 {[%clk 0:02:54.2]} 3... Nc6 {[%clk 0:02:53.6]}
4. d4 {[%clk 0:02:53.8]} 4... cxd4 {[%clk 0:02:53.9]} 5. Nxd4 {[%clk 0:02:54.7]}
5... d6 {[%clk 0:02:53.9]} 6. Be3 {[%clk 0:02:53.8]} 6... a6 {[%clk 0:02:54.2]}
7. Qd2 {[%clk 0:02:51.4]} 7... Nf6 {[%clk 0:02:54.2]} 8. f3 {[%clk 0:02:50.6]}
8... Qc7 {[%clk 0:02:53]} 9. O-O-O {[%clk 0:02:50.5]} 9... Be7 {[%clk
0:02:53.1]} 10. Kb1 {[%clk 0:02:50.8]} 10... b5 {[%clk 0:02:52.9]} 11. g4 {[%clk
0:02:49.4]} 11... h6 {[%clk 0:02:52.6]} 12. Nxc6 {[%clk 0:02:44.5]} 12... Qxc6
{[%clk 0:02:52]} 13. h4 {[%clk 0:02:44.6]} 13... b4 {[%clk 0:02:46.8]} 14. Ne2
{[%clk 0:02:44.1]} 14... a5 {[%clk 0:02:39.4]} 15. Nd4 {[%clk 0:02:43]} 15...
Qb7 {[%clk 0:02:39.2]} 16. Nb5 {[%clk 0:02:03.2]} 16... d5 {[%clk 0:02:05.6]}
17. e5 {[%clk 0:01:56.1]} 17... Nd7 {[%clk 0:02:01.4]} 18. f4 {[%clk 0:01:50.4]}
18... Nc5 {[%clk 0:01:16.6]} 19. Bxc5 {[%clk 0:01:40.7]} 19... Bxc5 {[%clk
0:01:16.8]} 20. Rh3 {[%clk 0:01:31.7]} 20... Bd7 {[%clk 0:01:15.6]} 21. Nd4
{[%clk 0:01:28.5]} 21... Bxd4 {[%clk 0:01:15]} 22. Qxd4 {[%clk 0:01:28.2]} 22...
Bb5 {[%clk 0:01:11]} 23. Bxb5+ {[%clk 0:01:15.9]} 23... Qxb5 {[%clk 0:01:11.3]}
24. f5 {[%clk 0:01:15.7]} 24... Rc8 {[%clk 0:01:03.6]} 25. b3 {[%clk 0:01:15.6]}
25... Qc5 {[%clk 0:01:01.3]} 26. Qd3 {[%clk 0:01:09.3]} 26... O-O {[%clk
0:00:38.7]} 27. g5 {[%clk 0:01:08.2]} 27... exf5 {[%clk 0:00:33.4]} 28. gxh6
{[%clk 0:00:57.2]} 28... g6 {[%clk 0:00:33.7]} 29. h5 {[%clk 0:00:53.4]} 29...
Kh7 {[%clk 0:00:33.9]} 30. e6 {[%clk 0:00:51.2]} 30... Qf2 {[%clk 0:00:16.3]}
31. exf7 {[%clk 0:00:47.5]} 31... Rxf7 {[%clk 0:00:16.6]} 32. hxg6+ {[%clk
0:00:37]} 32... Kxg6 {[%clk 0:00:17]} 33. Rf1 {[%clk 0:00:33.4]} 33... Qc5
{[%clk 0:00:06.5]} 34. h7 {[%clk 0:00:31.7]} 34... Rxh7 {[%clk 0:00:03.1]} 35.
Qxf5+ {[%clk 0:00:31.3]} 1-0